bitfinex/quotes_ETHUSD_20250807
["timestamp","ask_amount","ask_price","bid_price","bid_amount"]
[1754536890491,14.74096618,3658.2,3658.1,0.1368]
[1754536891655,14.74096618,3658.2,3658.1,2.87045955]
[1754536891877,14.28546618,3658.2,3658.1,2.87045955]
[1754536892460,14.28546618,3658.2,3658.1,0.1368]
[1754536893192,4.6112,3658.2,3658.1,2.87045955]
[1754536894357,4.138,3658.2,3658.1,2.87045955]
[1754536895495,4.138,3658.2,3658.1,0.1368]
[1754536895793,4.6112,3658.2,3658.1,0.1368]
[1754536896091,4.6112,3658.2,3658.1,2.87045955]
[1754536896394,5.0667,3658.2,3658.1,2.87045955]
[1754536900608,4.6112,3658.2,3658.1,2.87045955]
[1754536900912,4.138,3658.2,3658.1,3.32335955]
[1754536905690,4.138,3658.2,3658.1,2.87045955]
[1754536906425,4.138,3658.2,3658.1,3.32335955]
[1754536907620,0.9297,3658.6,3658.2,2.73357799]
[1754536907840,4.3920886,3658.5,3658.3,2.7335101]
[1754536907996,5.0667,3658.5,3658.3,2.7335101]
[1754536908188,0.9287,3658.5,3658.4,2.73343538]
[1754536908389,5.32087827,3658.5,3658.4,2.73343538]
[1754536909122,5.0667,3658.5,3658.4,2.73343538]
[1754536910227,0.001,3658.6,3658.5,2.73336066]
[1754536910389,4.39318931,3658.6,3658.5,2.73336066]
[1754536910789,4.82498931,3658.6,3658.5,2.73336066]
[1754536910985,5.28018931,3658.6,3658.5,2.73336066]
[1754536911191,5.026,3658.6,3658.5,2.73336066]
[1754536911396,5.28017048,3658.6,3658.5,2.73336066]
[1754536912230,5.28017048,3658.6,3658.4,2.87021884]
[1754536912547,1.14116519,3658.5,3658.4,2.87021884]
[1754536912691,0.887,3658.5,3658.4,2.87021884]
[1754536915315,0.4318,3658.5,3658.4,2.87021884]
[1754536915511,4.139,3658.6,3658.5,2.73336066]
[1754536917787,5.026,3658.6,3658.4,2.87022729]
[1754536917999,4.139,3658.6,3658.4,2.87022729]
[1754536918177,0.887,3658.5,3658.4,2.87022729]
[1754536918789,0.4318,3658.5,3658.4,2.87022729]
[1754536918991,4.139,3658.6,3658.5,2.73336066]
[1754536921100,4.5708,3658.6,3658.5,2.73336066]
[1754536921271,5.026,3658.6,3658.4,2.87022602]
[1754536921471,4.5708,3658.6,3658.4,2.87022602]
[1754536921676,0.887,3658.5,3658.4,2.87022602]
[1754536924618,10.56126618,3658.5,3658.4,0.1368]
[1754536924769,12.0314928,3658.5,3658.2,0.1368]
[1754536924967,5.024,3658.4,3658.1,2.87039532]
[1754536925185,9.67426618,3658.2,3658.1,2.87039532]
[1754536925406,14.69826618,3658.2,3658.1,2.87039532]
[1754536925735,0.001,3658.6,3658.3,2.73344867]
[1754536925913,0.001,3658.6,3658.5,2.73336066]
[1754536926116,4.138,3658.6,3658.5,2.73336066]
[1754536926292,0.001,3658.6,3658.5,2.73336066]
[1754536926495,4.138,3658.6,3658.5,3.22256066]
[1754536927023,0.888,3658.6,3658.4,0.1368]
[1754536927184,10.56126618,3658.5,3658.1,0.1368]
[1754536927388,5.51810366,3658.4,3658.1,0.1368]
[1754536927588,9.67426618,3658.2,3657.8,0.002]
[1754536927888,4.137,3658.1,3657.8,0.002]
[1754536928084,5.024,3658.1,3657.8,0.002]
[1754536928298,0.887,3658.0,3657.8,0.002]
[1754536928512,2.64387094,3658.0,3657.8,0.002]
[1754536928713,2.18867094,3658.0,3657.8,0.002]
[1754536928916,2.64387094,3658.0,3657.8,0.002]
[1754536932830,12.31813712,3658.0,3657.8,0.002]
[1754536934819,15.0518714,3658.0,3657.8,0.002]
[1754536935132,18.44230826,3658.0,3657.8,0.002]
[1754536935633,18.57910826,3658.0,3657.8,0.002]
[1754536937233,18.3254714,3658.0,3657.8,0.002]
[1754536942438,18.3254714,3658.0,3657.4,0.002]
[1754536942439,5.73410799,3657.5,3657.4,0.002]
[1754536942612,20.39318623,3657.5,3657.4,0.002]
[1754536942820,20.52998623,3657.5,3657.4,0.002]
[1754536943013,21.44668623,3657.5,3657.4,0.002]
[1754536944445,5.73425751,3657.3,3657.2,0.05]
[1754536944743,12.55894975,3657.3,3657.2,0.05]
[1754536944903,14.02564975,3657.3,3657.2,0.05]
[1754536945235,6.28433227,3657.2,3657.1,0.042]
[1754536945402,16.87529845,3657.2,3657.1,0.042]
[1754536945597,19.60396031,3657.2,3657.1,0.042]
[1754536945801,19.71357531,3657.2,3657.1,0.042]
[1754536948359,23.85257531,3657.2,3657.1,0.042]
[1754536949731,19.71357531,3657.2,3657.1,0.042]
[1754536950230,23.85257531,3657.2,3657.1,0.042]
[1754536950434,23.30257531,3657.2,3657.1,0.042]
[1754536950646,19.16357531,3657.2,3657.1,0.042]
[1754536950826,30.00257531,3657.2,3657.1,0.042]
[1754536951156,30.48257531,3657.2,3657.1,0.042]
[1754536952345,31.03257531,3657.2,3657.1,0.042]
[1754536952760,30.48257531,3657.2,3657.1,0.042]
[1754536954332,30.61937531,3657.2,3657.1,0.042]
[1754536954873,31.16937531,3657.2,3657.1,0.042]
[1754536956505,31.16937531,3657.2,3656.8,0.002]
[1754536956506,6.64673646,3657.1,3656.8,0.002]
[1754536956813,12.67426618,3656.9,3656.8,0.002]
[1754536956976,15.40882277,3656.9,3656.8,0.002]
[1754536957178,16.32552277,3656.9,3656.8,0.002]
[1754536957482,16.87552277,3656.9,3656.8,0.002]
[1754536957683,19.60418463,3656.9,3656.8,0.002]
[1754536957993,6.28470615,3656.7,3656.6,0.002]
[1754536958187,10.42470615,3656.7,3656.6,0.002]
[1754536958495,11.34140615,3656.7,3656.6,0.002]
[1754536958807,13.98929523,3656.7,3656.6,0.002]
[1754536959013,6.28508013,3656.2,3656.0,0.002]
[1754536959211,20.09934631,3656.2,3656.0,0.002]
[1754536959515,21.01604631,3656.2,3656.0,0.002]
[1754536959713,22.82800817,3656.2,3656.0,0.002]
[1754536960015,23.74470817,3656.2,3656.0,0.002]
[1754536960225,3.28545422,3655.7,3655.6,0.00193615]
[1754536960370,20.1067204,3655.7,3655.6,0.00193615]
[1754536960574,23.30762773,3655.7,3655.6,0.00193615]
[1754536960774,19.10647351,3655.7,3655.6,0.00193615]
[1754536961009,21.84192773,3655.7,3655.6,0.00193615]
[1754536961307,23.30862773,3655.7,3655.6,0.00193615]
[1754536961907,22.39592773,3655.7,3655.6,0.00193615]
[1754536962488,22.83262773,3655.7,3655.6,0.00193615]
[1754536962806,22.83262773,3655.7,3655.6,0.46223615]
[1754536962807,19.11147351,3655.7,3655.6,0.46223615]
[1754536963009,21.84692773,3655.7,3655.6,0.46223615]
[1754536963173,21.84692773,3655.7,3655.6,0.00193615]
[1754536963510,22.76362773,3655.7,3655.6,0.00193615]
[1754536964294,23.26392773,3655.7,3655.6,0.00193615]
[1754536964686,24.21004521,3655.7,3655.6,0.00193615]
[1754536964880,15.96009458,3655.2,3655.1,0.04]
[1754536965075,20.11509458,3655.2,3655.1,0.04]
[1754536965386,2.73651999,3654.3,3654.0,0.4603]
[1754536965585,4.155,3654.2,3654.0,0.4603]
[1754536965777,6.89157708,3654.2,3654.1,0.51988949]
[1754536965976,4.155,3654.2,3654.1,0.51988949]
[1754536966178,8.86782004,3654.2,3654.1,0.00958949]
[1754536966427,12.92132004,3654.2,3654.1,0.00958949]
[1754536966704,12.00462004,3654.2,3654.1,0.00958949]
[1754536967512,12.78452004,3654.2,3654.1,0.00958949]
[1754536968229,12.30452004,3654.2,3654.1,0.00958949]
[1754536968414,9.56794296,3654.2,3654.1,0.00958949]
[1754536968619,12.78452004,3654.2,3654.1,0.00958949]
[1754536969094,11.86782004,3654.2,3654.1,0.00958949]
[1754536969392,12.87812004,3654.2,3654.1,0.00958949]
[1754536969593,13.79482004,3654.2,3654.1,0.00958949]
[1754536970313,2.10496721,3655.4,3654.1,0.50268949]
[1754536970543,2.10496721,3655.4,3654.4,2.73640824]
[1754536970740,2.10496721,3655.4,3654.1,2.74619094]
[1754536970925,4.196,3655.3,3655.0,2.73595048]
[1754536971125,4.196,3655.3,3655.0,2.73592923]
[1754536971448,2.10496721,3655.4,3655.2,2.7358284]
[1754536971649,4.197,3655.3,3655.0,2.7359631]
[1754536971841,2.10496721,3655.4,3655.2,2.7358284]
[1754536972043,2.10496721,3655.4,3655.3,2.73575356]
[1754536972240,4.197,3655.4,3655.3,3.36534131]
[1754536973051,4.197,3655.4,3655.0,0.3113]
[1754536973220,4.197,3655.4,3655.0,2.73596633]
[1754536973621,4.197,3655.4,3655.1,2.73589859]
[1754536974158,4.197,3655.4,3655.0,3.04727559]
[1754536974651,4.198,3655.3,3655.2,2.7358284]
[1754536974854,0.04,3655.9,3655.5,2.73557959]
[1754536975050,0.04,3655.9,3655.6,2.73548641]
[1754536975256,4.198,3655.8,3655.6,0.3113]
[1754536975767,4.198,3655.8,3655.5,2.73559401]
[1754536975922,4.6805,3655.8,3655.3,2.73568054]
[1754536976259,4.6805,3655.8,3655.4,2.73567378]
[1754536976858,4.198,3655.8,3655.5,2.73559803]
[1754536977073,4.197,3655.7,3655.6,2.73552905]
[1754536977375,4.197,3655.7,3655.6,3.36512905]
[1754536977580,4.197,3655.7,3655.6,3.04682905]
[1754536977797,4.197,3655.7,3655.4,2.73567448]
[1754536978162,4.197,3655.7,3655.2,2.87260483]
[1754536978361,4.197,3655.7,3655.2,2.73580483]
[1754536978563,0.1368,3655.6,3655.1,3.18396336]
[1754536978867,4.197,3655.5,3655.3,2.73571425]
[1754536980009,4.197,3655.5,3655.3,2.73568251]
[1754536980163,4.197,3655.5,3655.1,0.1368]
[1754536980371,4.6795,3655.5,3655.2,2.73580312]
[1754536980567,4.6795,3655.5,3655.3,2.73575298]
[1754536980895,4.197,3655.5,3655.3,2.73575298]
[1754536981078,4.197,3655.5,3655.2,2.73582483]
[1754536981400,4.6795,3655.5,3655.2,2.73582483]
[1754536981613,0.4825,3655.4,3655.1,2.73589171]
[1754536981767,0.1368,3655.2,3655.1,2.73589171]
[1754536981971,0.1368,3655.4,3655.3,2.73572927]
[1754536982171,4.3328,3655.4,3655.3,2.73572927]
[1754536983805,7.18,3655.8,3655.6,2.73546173]
[1754536984112,4.196,3655.7,3655.4,2.7356683]
[1754536984471,0.1368,3655.6,3655.4,2.7356683]
[1754536985109,0.1368,3655.6,3655.3,0.6296]
[1754536985320,0.1368,3655.6,3655.4,2.73565897]
[1754536985707,0.1368,3655.6,3655.5,2.73560388]
[1754536986022,4.3328,3655.6,3655.5,2.73560388]
[1754536986537,0.1368,3655.6,3655.5,2.73560388]
[1754536986686,0.04,3655.9,3655.8,2.73537939]
[1754536987020,4.236,3655.9,3655.8,2.73537939]
[1754536987394,4.236,3655.9,3655.8,3.36507939]
[1754536987802,0.04,3655.9,3655.8,3.36507939]
[1754536988004,4.236,3655.9,3655.7,0.1368]
[1754536988211,4.236,3655.9,3655.7,2.87223034]
[1754536988590,4.236,3655.9,3655.8,2.73537939]
[1754536990004,4.234,3655.9,3655.8,3.36507939]
[1754536990219,4.234,3655.9,3655.8,3.98881904]
[1754536990601,4.233,3655.9,3655.8,3.98881904]
[1754536992399,0.04,3655.9,3655.8,3.98881904]
[1754536992600,4.232,3655.9,3655.8,3.98881904]
[1754536993579,0.04,3655.9,3655.8,3.98881904]
[1754536995776,1e-08,3655.9,3655.8,3.98881904]
[1754536995978,1e-08,3656.0,3655.9,2.73530457]
[1754536996178,1e-08,3656.0,3655.9,3.20493973]
[1754536996367,1e-08,3656.0,3655.9,3.83463973]
[1754536996577,1e-08,3656.0,3655.9,3.80728669]
[1754536996783,1e-08,3656.0,3655.9,3.94408669]
[1754536997667,1e-08,3656.0,3655.9,3.62578669]
[1754536997987,1e-08,3656.0,3655.9,3.94408669]
[1754536998295,1e-08,3656.0,3655.9,3.31438669]
[1754536998896,1e-08,3656.0,3655.9,3.94408669]
[1754536999105,1e-08,3656.0,3655.9,3.97143973]
[1754536999285,1e-08,3656.0,3655.9,6.97143973]
[1754536999601,1e-08,3656.0,3655.9,6.94408669]
[1754537000003,1e-08,3656.0,3655.9,11.68208669]
[1754537000216,1e-08,3656.0,3655.9,11.54528669]
[1754537001626,0.001,3656.8,3656.7,2.73470615]
[1754537002912,0.001,3656.8,3656.7,3.04610615]
[1754537003295,0.001,3656.8,3656.7,2.73470615]
[1754537006346,0.8958,3656.8,3656.7,2.73470615]
[1754537006818,0.4536,3656.8,3656.7,2.73470615]
[1754537006980,0.4536,3656.8,3656.7,3.17698827]
[1754537006981,0.001,3656.8,3656.7,3.17698827]
[1754537007181,0.8958,3656.8,3656.7,3.17698827]
[1754537009817,0.001,3656.8,3656.7,3.17698827]
[1754537010123,0.001,3656.8,3656.7,3.31378827]
[1754537010422,0.4536,3656.8,3656.7,3.31378827]
[1754537010719,0.8958,3656.8,3656.7,2.87150615]
[1754537011827,1e-08,3656.9,3656.8,2.73463137]
[1754537012027,1e-08,3656.9,3656.8,3.39167768]
[1754537012198,1e-08,3656.9,3656.8,3.36433137]
[1754537014988,1e-08,3656.9,3656.8,2.73463137]
[1754537015348,1e-08,3657.1,3657.0,2.73448181]
[1754537015689,1e-08,3657.1,3657.0,3.04588181]
[1754537015897,1e-08,3657.1,3657.0,2.87128181]
[1754537016098,0.45260001,3657.1,3657.0,2.87128181]
[1754537017037,1e-08,3657.1,3657.0,2.87128181]
[1754537019019,0.4536,3657.6,3657.5,2.73410799]
[1754537019226,0.001,3657.6,3657.5,2.73410799]
[1754537019411,0.001,3657.6,3657.5,2.87090799]
[1754537020101,0.4536,3657.6,3657.5,2.87090799]
[1754537022537,0.8958,3657.6,3657.5,2.87090799]
[1754537026956,0.4536,3657.6,3657.5,2.87090799]
[1754537027747,0.001,3657.6,3657.5,2.87090799]
[1754537028252,0.4536,3657.6,3657.5,2.87090799]
[1754537028647,0.8958,3657.6,3657.5,2.87090799]
[1754537033727,0.4866,3657.6,3657.5,2.87090799]
[1754537033952,0.9611,3657.6,3657.5,2.87090799]
[1754537043441,0.9611,3657.6,3657.5,0.1368]
[1754537044580,0.9611,3657.6,3657.5,2.87090799]
[1754537050894,0.4866,3657.6,3657.5,2.87090799]
[1754537054197,0.9611,3657.6,3657.5,2.87090799]
[1754537056565,0.4866,3657.6,3657.5,2.87090799]
[1754537056773,0.9611,3657.6,3657.5,2.87090799]
[1754537056996,0.4866,3657.6,3657.5,2.87090799]
[1754537058506,0.9611,3657.6,3657.5,2.87090799]
[1754537058806,0.4866,3657.6,3657.5,2.87090799]
[1754537059104,0.9611,3657.6,3657.5,2.87090799]
[1754537064199,0.001,3657.6,3657.5,2.87090799]
[1754537065093,0.001,3657.6,3657.5,3.46256349]
[1754537066994,0.001,3657.6,3657.5,3.77396349]
[1754537067196,0.001,3657.6,3657.5,3.46256349]
[1754537068807,0.001,3657.6,3657.5,4.09226349]
[1754537069677,1e-08,3657.6,3657.5,17.31605861]
[1754537069905,1e-08,3657.6,3657.5,20.94575861]
[1754537070114,0.001,3658.7,3658.3,2.7335101]
[1754537070413,0.001,3658.4,3658.3,3.00686111]
[1754537070615,0.001,3658.4,3658.3,3.14366111]
[1754537070780,0.001,3658.4,3658.3,7.29966111]
[1754537071110,0.001,3658.4,3658.3,7.92936111]
[1754537071310,0.001,3658.7,3658.5,2.73336066]
[1754537071489,0.001,3658.7,3658.5,6.88936066]
[1754537071692,0.001,3658.7,3658.5,7.65586066]
[1754537072726,0.001,3658.7,3658.6,2.73328595]
[1754537072948,0.001,3659.0,3658.9,2.73306184]
[1754537073108,0.001,3659.0,3658.9,16.86190797]
[1754537073301,0.001,3659.0,3658.9,17.62840797]
[1754537074720,0.001,3659.3,3659.2,2.73283777]
[1754537074902,0.001,3659.3,3659.2,6.88983777]
[1754537075089,0.001,3659.3,3659.2,7.65633777]
[1754537075290,0.001,3659.3,3659.2,7.81930853]
[1754537077226,0.001,3659.3,3659.2,8.13070853]
[1754537077403,0.001,3659.3,3659.2,8.44900853]
[1754537077602,1e-08,3659.3,3659.2,8.44900853]
[1754537077806,1e-08,3659.3,3659.2,18.14750365]
[1754537078993,1e-08,3659.3,3659.2,21.69750365]
[1754537079622,0.001,3659.7,3659.2,21.69750365]
[1754537079623,0.001,3659.7,3659.4,2.73268841]
[1754537079803,0.001,3659.7,3659.6,12.43103419]
[1754537079998,0.001,3659.7,3659.6,12.56783419]
[1754537080905,0.001,3659.7,3659.6,12.87923419]
[1754537081103,0.001,3659.7,3659.6,12.56783419]
[1754537081627,0.001,3659.7,3659.6,13.19753419]
[1754537081925,0.001,3659.7,3659.6,13.99020495]
[1754537083126,0.001,3659.7,3659.6,13.36050495]
[1754537083429,0.001,3659.7,3659.6,13.67190495]
[1754537084102,0.001,3659.7,3659.6,13.36050495]
[1754537085631,0.001,3659.7,3659.6,6.66200983]
[1754537089920,0.9348,3659.7,3659.6,0.1368]
[1754537090118,0.9348,3659.7,3659.6,2.86933907]
[1754537090399,0.9348,3659.7,3659.6,0.1368]
[1754537091315,0.9348,3659.7,3659.6,2.86933907]
[1754537091720,0.9348,3659.7,3659.1,6.88487384]
[1754537091921,0.9214,3659.6,3659.5,0.1368]
[1754537092630,0.9214,3659.6,3659.2,2.73283033]
[1754537092827,0.9214,3659.5,3659.1,0.1368]
[1754537093012,0.9214,3659.5,3659.2,2.73283777]
[1754537093216,0.9214,3659.4,3659.2,2.73283777]
[1754537093551,0.1378,3659.7,3659.2,2.73283777]
[1754537093552,0.9214,3659.3,3659.2,2.73283777]
[1754537094862,0.9214,3659.3,3659.0,2.73293045]
[1754537095032,0.9214,3659.2,3659.0,2.86973045]
[1754537095358,0.1378,3659.7,3659.2,2.73282503]
[1754537095516,1.26096996,3659.6,3659.2,2.73282503]
[1754537095718,1.26096996,3659.6,3659.3,2.73274846]
[1754537095919,1.26096996,3659.6,3659.0,2.86978315]
[1754537095920,0.9214,3659.5,3659.4,2.73268841]
[1754537096260,0.9214,3659.5,3659.3,2.73275589]
[1754537096423,0.9214,3659.4,3659.3,2.73275589]
[1754537096778,0.9214,3659.4,3658.8,4.152]
[1754537096920,0.9214,3659.4,3659.3,2.86956309]
[1754537097120,0.001,3659.7,3659.4,2.73267716]
[1754537097658,0.9214,3659.6,3659.5,2.86940654]
[1754537099430,0.9214,3659.6,3659.5,0.1368]
[1754537099631,0.9214,3659.6,3659.5,2.86941374]
[1754537100545,0.9214,3659.6,3659.5,0.1368]
[1754537100945,0.9214,3659.6,3659.4,2.73268785]
[1754537101145,0.9214,3659.5,3659.4,2.73268785]
[1754537102575,0.4616,3659.5,3659.4,2.73268785]
[1754537102987,0.9214,3659.5,3659.4,2.73268785]
[1754537104670,0.4626,3659.7,3659.6,2.73253907]
[1754537105036,0.4626,3659.7,3659.6,2.86933907]
[1754537105438,0.9224,3659.7,3659.6,2.86933907]
[1754537107578,0.001,3659.7,3659.6,2.86933907]
[1754537108843,0.001,3659.7,3659.6,3.42954176]
[1754537109978,0.9224,3659.7,3659.6,3.42954176]
[1754537110292,0.9224,3659.7,3659.6,2.86933907]
[1754537113171,0.001,3659.7,3659.6,2.86933907]
[1754537118678,0.001,3659.7,3659.6,2.89666446]
[1754537118876,0.001,3659.7,3659.6,2.86933907]
[1754537119488,0.4626,3659.7,3659.6,2.86933907]
[1754537119687,0.9224,3659.7,3659.6,2.86933907]
[1754537123308,0.001,3659.7,3659.6,2.86933907]
[1754537123965,0.4678,3659.7,3659.6,2.86933907]
[1754537124376,0.8999,3659.7,3659.6,2.86933907]
[1754537125618,0.4678,3659.7,3659.6,2.86933907]
[1754537126478,0.8999,3659.7,3659.6,2.86933907]
[1754537129881,0.8999,3659.7,3659.4,0.002]
[1754537130102,0.8989,3659.6,3659.5,0.1368]
[1754537131206,0.8989,3659.6,3659.5,2.86941374]
[1754537137937,0.8989,3659.6,3659.5,0.1368]
[1754537138436,0.8989,3659.6,3659.5,2.86941374]
[1754537140099,0.8989,3659.6,3659.5,0.1368]
[1754537140340,1.40789,3659.6,3659.4,0.002]
[1754537140553,0.50899,3659.6,3659.4,0.002]
[1754537140757,0.8989,3659.5,3659.4,0.002]
[1754537148242,5.0469,3659.5,3659.4,0.002]
[1754537148433,0.1378,3659.7,3659.5,2.73255831]
[1754537148638,4.148,3659.6,3659.5,2.73255831]
[1754537148816,0.001,3659.7,3659.6,2.73253907]
[1754537149016,0.001,3659.7,3659.6,3.36223907]
[1754537149218,0.001,3659.7,3659.6,3.49903907]
[1754537154441,1e-08,3659.7,3659.6,6.49903907]
[1754537154843,0.001,3660.1,3660.0,2.73224043]
[1754537155549,0.001,3660.1,3660.0,3.49874043]
[1754537157147,0.001,3660.1,3660.0,7.64574043]
[1754537157347,0.001,3660.3,3660.2,2.73209114]
[1754537157860,0.001,3660.3,3660.2,3.49859114]
[1754537158190,0.001,3660.3,3660.2,3.74069804]
[1754537158360,0.001,3660.3,3660.2,4.05899804]
[1754537158758,0.001,3660.3,3660.2,3.42929804]
[1754537159538,0.001,3660.3,3660.2,7.57629804]
[1754537159851,0.4598,3660.3,3660.2,3.42929804]
[1754537160061,0.4598,3660.3,3660.2,7.57629804]
[1754537160733,0.4598,3660.3,3660.2,3.42929804]
[1754537160938,0.8966,3660.3,3660.2,2.86889114]
[1754537161544,0.001,3660.3,3660.2,2.86889114]
[1754537162165,0.4598,3660.3,3660.2,2.86889114]
[1754537163772,0.8966,3660.3,3660.2,2.86889114]
[1754537164861,0.8966,3660.3,3660.2,2.73209114]
[1754537165076,0.8966,3660.3,3660.2,2.86889114]
[1754537166971,0.8966,3660.3,3660.2,2.73209114]
[1754537167495,0.001,3660.3,3660.2,2.73209114]
[1754537167644,0.4598,3660.3,3660.2,3.42899536]
[1754537167848,0.8966,3660.3,3660.2,2.86889114]
[1754537168258,0.4598,3660.3,3660.2,2.86889114]
[1754537168458,0.001,3660.3,3660.2,2.86889114]
[1754537168943,0.001,3660.3,3660.2,3.18029114]
[1754537169145,0.001,3660.3,3660.2,7.01589114]
[1754537169362,0.001,3660.4,3660.3,2.7320165]
[1754537169579,0.001,3660.4,3660.3,3.3617165]
[1754537170281,0.001,3660.4,3660.3,3.0434165]
[1754537170581,0.001,3660.4,3660.3,2.7320165]
[1754537171668,0.8966,3660.4,3660.3,2.7320165]
[1754537174187,0.001,3660.4,3660.3,2.7320165]
[1754537174548,0.4598,3660.4,3660.3,2.8688165]
[1754537174748,0.8966,3660.4,3660.3,2.8688165]
[1754537174965,0.8966,3660.4,3660.3,2.7320165]
[1754537175352,0.8966,3660.4,3660.2,2.73208038]
[1754537175550,0.8956,3660.3,3660.2,2.73208038]
[1754537177964,0.89150192,3660.3,3660.2,2.73208038]
[1754537178366,0.001,3660.4,3660.3,2.7320165]
[1754537178892,0.001,3660.4,3660.3,2.8688165]
[1754537182694,0.4744,3660.4,3660.3,2.8688165]
[1754537182897,0.9453,3660.4,3660.3,2.8688165]
[1754537185005,0.001,3660.4,3660.3,2.8688165]
[1754537185309,0.4744,3660.4,3660.3,2.8688165]
[1754537185709,0.9453,3660.4,3660.3,2.8688165]
[1754537189415,0.001,3660.4,3660.3,2.8688165]
[1754537190709,0.4744,3660.4,3660.3,2.8688165]
[1754537192219,0.9453,3660.4,3660.3,2.8688165]
[1754537195319,0.9453,3660.4,3660.2,2.7320783]
[1754537195519,1.0811,3660.3,3659.8,0.1368]
[1754537195693,6.8841463,3660.2,3659.4,2.73468665]
[1754537195897,0.1368,3660.0,3659.5,0.1368]
[1754537196092,0.9443,3659.9,3659.6,2.73252867]
[1754537196301,0.9443,3659.8,3659.5,2.86939708]
[1754537196506,0.1368,3660.0,3659.5,2.86939708]
[1754537196704,0.9443,3659.7,3659.5,2.86939708]
[1754537197024,0.4734,3659.6,3659.5,2.86939708]
[1754537197325,0.4734,3659.9,3659.8,2.73231636]
[1754537197626,0.001,3660.7,3659.9,2.73231509]
[1754537197810,0.4734,3660.3,3660.1,2.86890093]
[1754537198230,0.4709,3660.2,3660.1,2.86890093]
[1754537198387,0.9443,3660.2,3660.1,2.86890093]
[1754537199557,0.4719,3660.4,3660.2,2.73203953]
[1754537199756,4.6279,3660.4,3660.2,2.73203953]
[1754537200112,0.9443,3660.3,3660.2,2.73203953]
[1754537201261,0.4734,3660.3,3660.2,2.73203953]
[1754537201413,0.9443,3660.3,3660.1,2.86894645]
[1754537201745,0.9443,3660.2,3660.1,2.86894645]
[1754537205041,0.9443,3660.2,3660.1,0.1368]
[1754537205446,0.9443,3660.2,3660.1,2.73416578]
[1754537207844,0.4734,3660.2,3660.1,2.73416578]
[1754537208049,4.6304,3660.4,3660.3,2.7320165]
[1754537210565,4.157,3660.4,3660.3,2.7320165]
[1754537211545,4.6207,3660.4,3660.3,2.7320165]
[1754537212066,4.157,3660.4,3660.3,2.7320165]
[1754537212773,4.157,3660.4,3660.3,3.66709473]
[1754537213234,4.157,3660.4,3660.3,3.35569473]
[1754537213853,4.6207,3660.4,3660.3,3.35569473]
[1754537214052,4.157,3660.4,3660.3,3.35569473]
[1754537215377,0.001,3660.4,3660.3,3.35569473]
[1754537216180,0.001,3660.4,3660.3,3.69441489]
[1754537216387,0.001,3660.4,3660.3,3.98949473]
[1754537217249,0.001,3660.4,3660.3,3.35569473]
[1754537218173,0.001,3660.4,3660.3,3.66709473]
[1754537218965,0.001,3660.4,3660.3,3.35569473]
[1754537222186,1e-08,3660.4,3660.3,3.35569473]
[1754537222385,1e-08,3660.8,3660.7,2.73171797]
[1754537222551,1e-08,3660.8,3660.7,6.89671797]
[1754537224052,1e-08,3660.8,3660.7,7.36141797]
[1754537224255,1e-08,3660.8,3660.7,6.89671797]
[1754537225385,1e-08,3660.8,3660.7,2.86851797]
[1754537225584,1e-08,3660.8,3660.7,3.4921962]
[1754537227090,0.46370001,3660.8,3660.7,3.4921962]
[1754537227793,1e-08,3660.8,3660.7,3.4921962]
[1754537228994,0.90590001,3660.8,3660.7,3.4921962]
[1754537229295,0.46370001,3660.8,3660.7,3.4921962]
[1754537229493,1e-08,3660.8,3660.7,3.4921962]
[1754537229912,0.46370001,3660.8,3660.7,3.4921962]
[1754537230276,0.90590001,3660.8,3660.7,2.86851797]
[1754537231006,0.90590001,3660.8,3660.7,2.73171797]
[1754537236621,0.001,3661.2,3661.1,2.73141951]
[1754537236781,0.001,3661.2,3661.1,3.00456146]
[1754537236980,0.001,3661.2,3661.1,3.14136146]
[1754537238601,0.4647,3661.2,3661.1,2.86821951]
[1754537238947,0.9069,3661.2,3661.0,2.73147573]
[1754537239284,0.001,3661.2,3661.0,2.73147573]
[1754537239525,0.9059,3661.1,3661.0,2.73147573]
[1754537242020,0.9059,3661.1,3660.9,0.1368]
[1754537242221,0.9059,3661.1,3660.1,2.73409953]
[1754537242222,5.0853,3661.0,3660.1,2.73409953]
[1754537242399,0.1368,3660.6,3660.1,2.87089953]
[1754537242598,0.9133,3660.5,3660.1,0.002]
[1754537242837,0.1368,3660.3,3660.1,0.002]
[1754537243190,0.9133,3660.2,3660.1,0.002]
[1754537244906,1.1679942,3660.2,3660.1,0.002]
[1754537245090,2.01587362,3660.2,3660.1,0.002]
[1754537245289,1.76117942,3660.2,3660.1,0.002]
[1754537247431,8.04327056,3660.2,3660.1,0.002]
[1754537247598,8.29756431,3660.2,3660.1,0.002]
[1754537251502,8.04327056,3660.2,3660.1,0.002]
[1754537253451,5.31117942,3660.2,3660.1,0.002]
[1754537254846,3.84787942,3660.2,3660.1,0.002]
[1754537255035,8.2231,3660.2,3660.1,0.002]
[1754537255338,7.7676,3660.2,3660.1,0.002]
[1754537255910,8.2231,3660.2,3660.1,0.002]
[1754537257345,10.95519114,3660.2,3660.1,0.002]
[1754537257933,8.2231,3660.2,3660.1,0.002]
[1754537258138,9.31861256,3660.2,3660.1,0.002]
[1754537259523,4.23231256,3660.2,3660.1,0.002]
[1754537259736,7.3108,3660.2,3660.1,0.002]
[1754537260261,7.7686,3660.2,3660.1,0.002]
[1754537260674,8.2241,3660.2,3660.1,0.002]
[1754537264189,7.3108,3660.2,3660.1,0.002]
[1754537264341,4.3088,3660.2,3660.1,0.002]
[1754537266143,4.7666,3660.2,3660.1,0.002]
[1754537266441,5.2221,3660.2,3660.1,0.002]
[1754537270083,5.2191,3660.2,3660.1,0.002]
[1754537272249,5.47390231,3660.2,3660.1,0.002]
[1754537272577,5.2191,3660.2,3660.1,0.002]
[1754537272785,5.47390452,3660.2,3660.1,0.002]
[1754537273795,5.01840452,3660.2,3660.1,0.002]